bitfinex-derivatives/quotes_ETHF0:USTF0_20240907
["timestamp","ask_amount","ask_price","bid_price","bid_amount"]
[1725668331555,0.31372,2231.8,2231.7,3.2078]
[1725668331752,0.31372,2231.8,2231.6,0.3933]
[1725668331753,0.31374,2231.7,2231.6,0.3933]
[1725668332260,0.31376,2231.6,2231.3,2.05385431]
[1725668332551,0.31376,2231.6,2231.4,2.24234812]
[1725668332756,0.31376,2231.6,2231.4,0.31378]
[1725668333157,3.5824,2232.0,2231.6,0.31374]
[1725668333355,3.9731,2232.0,2231.7,0.3708]
[1725668333655,0.31371,2231.9,2231.7,0.3708]
[1725668334354,3.9122,2232.0,2231.7,0.68453]
[1725668334553,0.31366,2232.3,2232.0,0.31369]
[1725668334950,0.31367,2232.2,2232.0,0.31369]
[1725668335752,7.09188,2232.5,2231.8,3.2078]
[1725668335753,0.31369,2232.1,2231.8,3.52151]
[1725668335950,0.31371,2231.9,2231.7,2.11087431]
[1725668336150,0.31371,2231.9,2231.7,0.3708]
[1725668336656,1e-08,2231.9,2231.7,0.3708]
[1725668336856,0.31372001,2231.9,2231.7,0.3708]
[1725668337663,0.31372,2231.8,2231.7,0.3708]
[1725668337855,0.31372001,2231.9,2231.7,0.3708]
[1725668339453,0.31372,2231.8,2231.7,0.3708]
[1725668339952,1e-08,2231.9,2231.7,0.3708]
[1725668340151,1e-08,2231.9,2231.7,0.68453]
[1725668340355,0.31371001,2231.9,2231.7,0.68453]
[1725668340865,0.31371001,2231.9,2231.7,1.84166207]
[1725668341063,1e-08,2231.9,2231.7,1.84166207]
[1725668341562,0.31371001,2231.9,2231.7,1.84166207]
[1725668341763,0.31371001,2231.9,2231.7,1.52793207]
[1725668341971,0.31372,2231.8,2231.7,1.52793207]
[1725668343662,1e-08,2231.9,2231.7,1.84167207]
[1725668343862,0.31371001,2231.9,2231.7,1.84167207]
[1725668344064,1e-08,2231.9,2231.7,1.84167207]
[1725668344460,0.31371001,2231.9,2231.7,1.84167207]
[1725668345169,1e-08,2231.9,2231.7,1.84167207]
[1725668345367,1e-08,2231.9,2231.8,0.31372]
[1725668345661,0.31371001,2231.9,2231.7,1.84166207]
[1725668345868,1e-08,2231.9,2231.8,0.31372]
[1725668346266,0.31371001,2231.9,2231.7,1.84166207]
[1725668347567,0.31372,2231.8,2231.7,1.84166207]
[1725668347762,0.31372,2231.8,2231.7,1.52793207]
[1725668348163,0.31372,2231.8,2231.7,1.15713207]
[1725668348462,3.5739,2231.8,2231.5,1.15713207]
[1725668348663,0.31374,2231.7,2231.6,1.15713207]
[1725668348963,0.31374,2231.7,2231.5,1.47089207]
[1725668351968,3.52153,2231.8,2231.5,1.15713207]
[1725668352172,1e-08,2231.9,2231.7,1.15713207]
[1725668352366,1e-08,2231.9,2231.8,7.33205466]
[1725668352673,1e-08,2231.9,2231.8,11.81285466]
[1725668352868,1e-08,2231.9,2231.8,22.29598635]
[1725668353665,4.11,2232.6,2232.5,0.31362]
[1725668353970,0.24420475,2232.8,2232.7,0.31359]
[1725668354270,0.31358,2232.8,2232.6,1.55542618]
[1725668354665,3.88389,2233.0,2232.6,0.3998]
[1725668355067,0.3136,2232.7,2232.6,0.3998]
[1725668356764,0.31359,2232.8,2232.6,0.3998]
[1725668358679,0.31359,2232.8,2232.6,1.55542618]
[1725668358863,0.3136,2232.7,2232.6,1.55542618]
[1725668359069,0.3136,2232.7,2232.5,4.36342618]
[1725668359370,0.3136,2232.7,2232.6,1.15562618]
[1725668359769,8.471,2232.7,2232.3,1.15562618]
[1725668359968,3.52144,2232.4,2232.2,1.15562618]
[1725668360168,0.31367,2232.2,2232.1,1.15562618]
[1725668360370,0.31366,2232.3,2232.1,1.15562618]
[1725668362376,0.31366,2232.3,2232.2,1.15562618]
[1725668362879,0.31366,2232.3,2232.1,1.15562618]
[1725668362880,0.31367,2232.2,2232.1,1.15562618]
[1725668363076,0.31366,2232.3,2232.1,1.15562618]
[1725668363574,4.79367,2232.2,2232.1,1.15562618]
[1725668363777,10.79367,2232.2,2231.9,1.15562618]
[1725668363973,3.1,2232.0,2231.7,1.15562618]
[1725668364166,3.32960167,2232.0,2231.7,1.15562618]
[1725668364366,0.31374,2231.7,2231.6,1.15562618]
[1725668364766,0.31373,2231.8,2231.6,1.15562618]
[1725668365371,0.31373,2231.8,2231.7,1.15562618]
[1725668366378,0.31373,2231.8,2231.6,1.15562618]
[1725668366878,0.31373,2231.8,2231.7,1.15562618]
[1725668367376,0.31373,2231.8,2231.6,1.15562618]
[1725668367780,0.31373,2231.8,2231.7,1.15562618]
[1725668367970,0.31373,2231.8,2231.5,5.30981045]
[1725668367971,0.31373,2231.8,2231.6,1.15562618]
[1725668368771,0.31374,2231.7,2231.6,1.15562618]
[1725668368978,0.31375,2231.6,2231.5,1.15562618]
[1725668369269,0.68055,2231.6,2231.5,1.15562618]
[1725668369482,3.78055,2231.6,2231.5,1.15562618]
[1725668369680,0.31376,2231.5,2231.4,1.15562618]
[1725668370183,3.52156,2231.5,2231.4,1.15562618]
[1725668370773,0.31378,2231.4,2231.3,1.54702618]
[1725668370978,0.31378,2231.4,2231.3,1.15562618]
[1725668371183,0.31379,2231.3,2231.2,1.15562618]
[1725668371379,0.31381,2231.2,2231.0,1.15562618]
[1725668371577,7.36242,2231.1,2231.0,1.15562618]
[1725668371781,7.36242,2231.1,2230.9,1.15562618]
[1725668372178,0.31383,2231.0,2230.9,1.15562618]
[1725668372377,5.26701,2231.0,2230.6,1.54262618]
[1725668372583,0.31388,2230.7,2230.6,1.15562618]
[1725668372977,8.00488,2230.7,2230.4,1.15562618]
[1725668373181,3.1,2230.5,2230.3,1.54262618]
[1725668373575,3.2078,2230.4,2230.1,1.15562618]
[1725668373786,3.41395,2230.2,2230.0,4.36342618]
[1725668373978,3.41395,2230.2,2230.0,3.2078]
[1725668374383,3.1,2230.2,2230.0,3.2078]
[1725668374778,3.41395,2230.2,2230.0,3.2078]
[1725668376085,0.31396,2230.1,2230.0,3.2078]
[1725668376482,3.41395,2230.2,2230.0,3.2078]
[1725668377991,0.31396,2230.1,2230.0,3.2078]
[1725668378690,3.41395,2230.2,2230.0,3.2078]
[1725668379186,3.1,2230.2,2230.0,0.31397]
[1725668379395,0.31394,2230.3,2230.0,0.31397]
[1725668379686,0.31399,2229.9,2229.8,3.2078]
[1725668380986,0.31399,2229.9,2229.5,0.3864]
[1725668380987,0.31401,2229.8,2229.5,0.70044]
[1725668381593,0.31402,2229.7,2229.5,0.70044]
[1725668381792,3.1,2230.0,2229.5,0.70044]
[1725668381793,0.31401,2229.8,2229.5,0.70044]
[1725668382193,0.31401,2229.8,2229.6,0.31403]
[1725668384394,3.4713,2230.0,2229.5,0.3864]
[1725668384591,3.99278,2229.9,2229.5,0.3864]
[1725668384792,0.31403,2229.6,2229.5,0.3864]
[1725668386295,0.31403,2229.7,2229.5,0.70045]
[1725668386693,3.2078,2229.9,2229.5,4.8712]
[1725668386894,0.31398,2230.0,2229.8,0.314]
[1725668387807,0.3978,2230.1,2229.5,0.3864]
[1725668388008,0.31401,2229.8,2229.6,0.31403]
[1725668390107,0.31401,2229.8,2229.5,0.70044]
[1725668390906,0.31402,2229.7,2229.5,0.70044]
[1725668391308,0.31403,2229.6,2229.5,0.3864]
[1725668393209,8.37069,2229.6,2229.1,0.3141]
[1725668393513,0.69995,2229.5,2229.3,0.31407]
[1725668394415,3.2078,2229.7,2229.1,0.3685]
[1725668394614,3.52182,2229.7,2229.3,3.2078]
[1725668394813,3.2078,2229.7,2229.6,0.31403]
[1725668395512,0.314,2229.8,2229.6,0.31403]
[1725668395706,7.5848,2229.7,2229.1,0.3685]
[1725668395910,7.5848,2229.7,2228.9,3.2078]
[1725668395911,0.78519,2229.3,2228.9,3.2078]
[1725668396211,0.31412,2229.0,2228.9,3.2078]
[1725668396517,0.31411,2229.1,2229.0,0.31412]
[1725668396717,0.31412,2229.0,2228.9,3.2078]
[1725668397220,0.31411,2229.1,2228.9,8.00833]
[1725668397512,0.31412,2229.0,2228.9,3.52193]
[1725668397903,0.31411,2229.1,2228.9,8.00833]
[1725668398102,0.31411,2229.1,2228.9,3.52193]
[1725668398315,4.42403,2229.6,2229.0,4.4864]
[1725668398509,14.08979,2229.9,2229.5,0.31404]
[1725668398510,0.31402,2229.7,2229.5,0.31404]
[1725668398705,0.31402,2229.7,2229.6,0.3792]
[1725668399515,0.31401,2229.8,2229.6,0.69323]
[1725668399910,0.31402,2229.7,2229.6,0.3792]
[1725668400310,0.31401,2229.8,2229.6,0.69323]
[1725668403118,0.31402,2229.7,2229.6,0.69323]
[1725668403313,0.31404,2229.6,2229.2,3.2078]
[1725668403514,0.31405,2229.5,2229.3,0.3792]
[1725668403816,0.31406,2229.4,2229.3,0.3792]
[1725668404022,0.31407,2229.3,2229.2,3.52188]
[1725668404208,0.31407,2229.4,2229.2,3.52188]
[1725668404519,0.31407,2229.3,2229.1,0.69329]
[1725668404712,0.31407,2229.3,2228.5,3.2078]
[1725668404713,3.1,2229.2,2228.5,3.2078]
[1725668404918,0.3835,2229.1,2228.9,0.31413]
[1725668405120,0.31411,2229.1,2229.0,0.31412]
[1725668405313,0.31411,2229.1,2228.9,0.31412]
[1725668405913,0.31411,2229.1,2228.9,0.71552]
[1725668406123,3.4835,2229.4,2228.9,0.4014]
[1725668406718,0.31407,2229.3,2229.2,0.31408]
[1725668407019,0.31407,2229.4,2229.3,0.31407]
[1725668408014,0.31407,2229.4,2228.9,0.7789]
[1725668408015,0.31407,2229.4,2229.2,0.31408]
[1725668409011,0.31407,2229.3,2229.1,0.31409]
[1725668409218,0.31407,2229.3,2229.2,0.31409]
[1725668409616,0.31407,2229.3,2229.1,0.31409]
[1725668410526,3.1,2229.4,2228.9,1.09302]
[1725668410723,0.3798,2229.2,2228.9,0.71552]
[1725668411019,0.31414,2228.9,2228.7,0.31415]
[1725668411614,0.31412,2229.0,2228.8,0.31414]
[1725668412019,0.31413,2228.9,2228.7,0.31415]
[1725668412219,0.31413,2228.9,2228.7,0.31416]
[1725668413224,0.31413,2228.9,2228.6,0.70206]
[1725668414221,0.31414,2228.8,2228.6,0.70206]
[1725668414423,0.31414,2228.8,2228.6,0.3879]
[1725668414619,0.31414,2228.9,2228.6,0.3879]
[1725668414826,0.31414,2228.9,2228.6,1.85768618]
[1725668415328,0.31414,2228.9,2228.6,0.70206]
[1725668415527,0.31414,2228.9,2228.6,1.85768618]
[1725668416020,3.41413,2229.0,2228.7,0.31416]
[1725668416417,0.31413,2228.9,2228.7,1.46978618]
[1725668416726,0.31413,2228.9,2228.7,1.15562618]
[1725668417126,0.31413,2228.9,2228.6,1.85769618]
[1725668417424,0.31413,2228.9,2228.7,1.15562618]
[1725668418727,0.31414,2228.8,2228.7,1.15562618]
[1725668419626,0.31414,2228.8,2228.7,3.40069553]
[1725668419822,0.31414,2228.8,2228.7,3.40765009]
[1725668420018,0.31414,2228.8,2228.7,3.40760708]
[1725668420420,0.31414,2228.8,2228.7,2.24506935]
[1725668420626,0.31414,2228.8,2228.7,1.16257817]
[1725668421827,0.34844,2228.9,2228.7,1.16257817]
[1725668422417,0.31414,2228.8,2228.7,1.16257817]
[1725668422623,0.34844,2228.9,2228.7,1.16257817]
[1725668422820,0.31414,2228.8,2228.7,1.16257817]
[1725668423224,0.34844,2228.9,2228.7,1.16257817]
[1725668423822,0.31414,2228.8,2228.7,1.16257817]
[1725668424129,0.31416,2228.7,2228.6,1.16257817]
[1725668424326,1.47316,2228.7,2228.6,1.16257817]
[1725668424531,5.17496,2228.7,2228.4,1.16257817]
[1725668424725,3.41419,2228.5,2228.3,1.16257817]
[1725668425026,0.31419,2228.5,2228.3,1.54287817]
[1725668425729,0.3142,2228.4,2228.3,1.16257817]
[1725668426125,3.1,2228.5,2228.2,4.37037817]
[1725668426325,0.3142,2228.4,2228.2,4.37037817]
[1725668426934,6.622,2228.5,2228.2,4.37037817]
[1725668427236,0.3142,2228.4,2228.2,4.37037817]
[1725668427628,6.3078,2228.5,2228.2,4.37037817]
[1725668427935,0.31421,2228.4,2228.2,4.37037817]
[1725668428330,0.31421,2228.4,2228.2,3.2078]
[1725668429743,3.4736,2228.7,2228.2,4.37037817]
[1725668430034,0.31418,2228.6,2228.3,1.53777817]
[1725668430236,3.4736,2228.7,2228.4,1.56137817]
[1725668430435,0.31418,2228.6,2228.4,0.3988]
[1725668430741,0.31418,2228.6,2228.4,1.56137817]
[1725668430942,0.31419,2228.5,2228.4,0.3988]
[1725668431239,3.2078,2228.6,2228.4,0.3988]
[1725668431240,3.52198,2228.6,2228.4,0.3988]
[1725668431439,0.31418,2228.6,2228.4,1.56137817]
[1725668431838,0.31418,2228.6,2228.4,0.3988]
[1725668433143,0.31419,2228.5,2228.4,0.3988]
[1725668433439,0.31418,2228.6,2228.4,1.56137817]
[1725668434942,0.31419,2228.5,2228.4,1.56137817]
[1725668435145,0.31419,2228.5,2228.4,0.3988]
[1725668435941,3.4736,2228.7,2228.4,0.3988]
[1725668436131,0.31419,2228.5,2228.4,0.3988]
[1725668437133,0.31418,2228.6,2228.4,0.3988]
[1725668437335,0.31418,2228.6,2228.4,1.56137817]
[1725668437537,0.31415,2228.8,2228.5,3.52198]
[1725668437734,0.31415,2228.8,2228.6,1.55977817]
[1725668438138,0.31417,2228.6,2228.5,1.16257817]
[1725668438338,0.31419,2228.5,2228.4,1.56137817]
[1725668439239,0.31419,2228.5,2228.4,0.3988]
[1725668439746,0.31419,2228.5,2228.4,1.56137817]
[1725668443039,0.31419,2228.5,2228.4,0.3988]
[1725668445652,0.3142,2228.4,2228.3,1.16257817]
[1725668448056,4.8022,2228.4,2228.3,1.16257817]
[1725668448262,4.8022,2228.4,2228.2,3.5792]
[1725668448263,0.31421,2228.3,2228.2,4.74177817]
[1725668448445,0.31421,2228.3,2228.2,5.82487701]
[1725668449852,0.31421,2228.3,2228.2,7.55838746]
[1725668450253,0.31413,2228.9,2228.2,17.09844701]
[1725668450559,3.4937,2229.1,2228.8,1.47886656]
[1725668450766,0.31412,2229.0,2228.9,1.53632656]
[1725668451355,0.31411,2229.1,2228.9,1.85045656]
[1725668451555,0.31412,2229.0,2228.9,1.53632656]
[1725668452360,0.31412,2229.0,2228.9,1.16472656]
[1725668452559,0.31413,2228.9,2228.8,1.16472656]
[1725668452859,7.02003,2228.9,2228.8,1.16472656]
[1725668453058,0.31414,2228.8,2228.7,1.16472656]
[1725668453264,0.70944,2228.8,2228.7,3.40997201]
[1725668453561,0.31414,2228.8,2228.7,2.24524545]
[1725668454758,0.31414,2228.8,2228.7,3.9923353]
[1725668455762,6.62194,2228.9,2228.7,3.9923353]
[1725668455969,6.62194,2228.9,2228.8,2.24524545]
[1725668456757,3.41414,2228.9,2228.8,2.24524545]
[1725668457161,3.41414,2228.9,2228.7,1.74708985]
[1725668457162,0.31414,2228.8,2228.7,1.74708985]
[1725668457363,0.31414,2228.8,2228.7,3.99225006]
[1725668458962,0.31414,2228.8,2228.7,3.99231575]
[1725668459574,5.58671,2228.8,2228.7,3.99231575]
[1725668459764,5.58671,2228.8,2228.7,1.16601807]
[1725668460071,1.09956,2228.7,2228.6,1.16601807]
[1725668460269,1.49346,2228.7,2228.6,1.16601807]
[1725668460569,5.19526,2228.7,2228.6,1.16601807]
[1725668460869,5.98066,2228.7,2228.6,2.24542459]
[1725668461070,5.98066,2228.7,2228.6,1.16617043]
[1725668462469,5.98066,2228.7,2228.6,3.41163522]
[1725668462771,5.98066,2228.7,2228.6,1.16617043]
[1725668463072,5.19526,2228.7,2228.6,1.16617043]
[1725668463274,5.19526,2228.7,2228.6,2.24548906]
[1725668463567,4.80136,2228.7,2228.6,3.99257891]
[1725668463768,3.2078,2228.9,2228.8,0.31414]
[1725668464072,3.2078,2228.9,2228.8,15.36109567]
[1725668464265,7.52407,2229.4,2229.1,0.3141]
[1725668464573,7.52407,2229.4,2229.3,1.16549205]
[1725668464772,3.2078,2229.4,2229.3,2.55878354]
[1725668465070,0.31405,2229.5,2229.3,7.04438354]
[1725668465370,0.31405,2229.5,2229.4,3.99237209]
[1725668465570,0.31405,2229.5,2229.4,2.24471354]
[1725668465764,3.1,2229.6,2229.3,2.06172855]
[1725668465971,3.41403,2229.6,2229.5,1.16469987]
[1725668466573,3.41403,2229.6,2229.4,1.16469987]
[1725668467174,3.41403,2229.6,2229.5,1.16469987]
[1725668467675,3.41404,2229.6,2229.4,1.47875987]
[1725668467877,3.1,2229.6,2229.5,0.31405]
[1725668468176,3.41403,2229.6,2229.5,1.16469987]
[1725668468563,3.41403,2229.6,2229.4,0.31405]
[1725668468564,3.41403,2229.6,2229.4,1.47874987]
[1725668468772,3.1,2229.6,2229.5,0.31405]
[1725668469669,3.1,2229.6,2229.5,1.47874987]
[1725668470869,3.1,2229.6,2229.5,0.31405]
[1725668471070,3.1,2229.6,2229.5,1.47874987]
[1725668471266,7.52398,2230.0,2229.5,11.65029987]
[1725668471568,3.1,2230.2,2229.7,1.16469987]
[1725668471769,3.41395,2230.2,2230.0,0.31397]
[1725668471965,3.41395,2230.2,2229.9,1.16469987]
[1725668471966,3.1,2230.2,2229.9,1.16469987]
[1725668472269,0.31398,2230.0,2229.9,1.16469987]
[1725668472476,0.31398,2230.0,2229.8,1.85749987]
[1725668473074,0.31398,2230.0,2229.9,0.31399]
[1725668473282,0.31399,2229.9,2229.8,1.85748987]
[1725668473480,0.31399,2229.9,2229.8,0.69279]
[1725668473671,0.31398,2230.0,2229.8,5.17759]
[1725668473874,0.31398,2230.0,2229.8,0.69279]
[1725668474069,3.88489,2230.2,2229.8,0.69279]
[1725668474380,0.31399,2229.9,2229.8,0.69279]
[1725668474778,0.31398,2230.0,2229.8,5.17759]
[1725668474979,0.31398,2230.0,2229.8,0.69279]
[1725668475883,0.31398,2230.0,2229.5,1.74765855]
[1725668475884,0.31402,2229.7,2229.5,0.31404]
[1725668476482,0.78503,2229.8,2229.4,0.3749]
[1725668476685,0.31404,2229.6,2229.4,0.68895]
[1725668476875,3.88503,2229.8,2229.4,0.3749]
[1725668477181,0.31404,2229.6,2229.4,0.68895]
[1725668477686,3.88503,2229.8,2229.4,0.3749]
[1725668477687,0.31405,2229.5,2229.4,0.3749]
[1725668478986,0.78507,2229.7,2229.2,1.16469987]
[1725668479182,3.99292,2229.5,2229.1,0.3891]
[1725668479481,0.31407,2229.4,2229.1,0.7032]
[1725668479675,0.31407,2229.4,2229.1,0.70319]
[1725668479881,0.31408,2229.3,2229.1,0.70319]
[1725668480781,0.31407,2229.4,2229.1,0.70319]
[1725668480974,0.31407,2229.4,2229.2,0.31409]
[1725668483885,0.31405,2229.5,2229.3,0.31407]
[1725668484683,0.7851,2229.6,2229.2,0.71298]
[1725668484881,0.31407,2229.4,2229.2,0.31408]
[1725668485185,3.2078,2229.7,2229.1,4.76159987]
[1725668485386,3.1,2229.8,2229.2,1.16469987]
[1725668485589,0.31404,2229.6,2229.4,0.31405]
[1725668485785,0.31405,2229.5,2229.4,0.31405]
[1725668485984,3.88503,2229.8,2229.2,1.16469987]
[1725668486175,0.7851,2229.6,2229.1,4.76159987]
[1725668486482,0.31407,2229.4,2229.2,0.31409]
[1725668487387,0.31408,2229.3,2229.1,1.86788987]
[1725668487779,0.31409,2229.2,2229.1,0.7032]
[1725668487977,0.31409,2229.2,2229.1,0.3891]
[1725668488180,3.2078,2229.3,2228.9,1.47882987]
[1725668488385,3.2078,2229.3,2228.8,5.04953987]
[1725668488386,3.88524,2229.2,2228.8,5.04953987]
[1725668488589,0.31412,2229.0,2228.8,0.67704]
[1725668489184,0.31412,2229.0,2228.8,0.3629]
[1725668489587,0.31412,2229.0,2228.8,0.67704]
[1725668490377,0.31413,2228.9,2228.7,1.16469987]
[1725668490583,0.31413,2228.9,2228.6,1.84775987]
[1725668491492,0.31413,2229.0,2228.7,0.31415]
[1725668491687,3.41409,2229.2,2229.0,0.31412]
[1725668491895,3.79107,2229.4,2229.2,0.31408]
[1725668492887,0.31407,2229.3,2229.1,0.31409]
[1725668493489,3.79107,2229.4,2229.2,0.31408]
[1725668493686,3.477,2229.4,2229.3,0.31407]
[1725668493886,3.79106,2229.4,2229.1,1.54539987]
[1725668494185,3.477,2229.4,2229.3,0.31407]
[1725668494385,3.79106,2229.4,2229.2,0.31408]
[1725668494796,0.31405,2229.5,2229.1,4.75319987]
[1725668494992,0.31405,2229.5,2229.3,0.31406]
[1725668495797,0.31406,2229.4,2229.2,1.47877987]
[1725668496096,0.31406,2229.4,2229.2,0.31408]
[1725668496481,0.31406,2229.4,2229.2,1.16469987]
[1725668496787,0.31405,2229.5,2229.3,0.31407]
[1725668496989,0.31406,2229.4,2229.2,1.47877987]
[1725668497388,0.31406,2229.4,2229.2,0.31408]
[1725668497694,0.31406,2229.4,2229.2,1.47877987]
[1725668498690,0.31407,2229.3,2229.2,1.16469987]
[1725668499088,0.31409,2229.2,2229.1,1.54539987]
[1725668499290,0.31409,2229.2,2229.1,1.16469987]
[1725668499594,0.68629,2229.2,2229.1,1.16469987]
[1725668500595,3.41408,2229.3,2229.1,1.47879987]
[1725668502094,0.31409,2229.2,2229.1,1.47879987]
[1725668502294,0.31409,2229.2,2229.1,1.16469987]
[1725668502488,0.31409,2229.2,2229.0,2.06176855]
[1725668502489,0.3141,2229.1,2229.0,1.16469987]
[1725668502701,0.3141,2229.1,2229.0,2.24481344]
[1725668503201,0.3141,2229.1,2229.0,3.99247199]
[1725668503897,0.3141,2229.1,2229.0,1.47816413]
[1725668504201,0.3141,2229.1,2229.0,3.408908]
[1725668505496,0.3141,2229.1,2229.0,2.24486387]
[1725668506200,0.3141,2229.1,2229.0,3.40934555]
[1725668506398,0.31409,2229.2,2229.0,2.55899126]
[1725668506596,0.31409,2229.2,2229.1,1.16450075]
[1725668509095,0.31409,2229.2,2229.1,3.40938584]
[1725668509498,0.31409,2229.2,2229.1,2.24488509]
[1725668509692,0.31409,2229.2,2229.1,3.41030495]
[1725668510398,3.2078,2229.5,2229.1,3.41030495]
[1725668510702,3.1,2229.6,2229.3,1.16528019]
[1725668510703,0.31406,2229.4,2229.3,1.16528019]
[1725668511100,0.31407,2229.3,2229.2,1.16528019]
[1725668511294,4.19926,2229.3,2229.2,1.16528019]
[1725668511494,4.19926,2229.3,2229.1,1.16528019]
[1725668511495,0.31409,2229.2,2229.1,1.16528019]
[1725668511907,0.31409,2229.2,2229.1,3.41011927]
[1725668512502,0.31409,2229.2,2229.1,3.99249763]
[1725668512698,0.31409,2229.2,2229.1,4.38469763]
[1725668513402,0.31409,2229.2,2229.1,2.63703908]
[1725668513701,0.31409,2229.2,2229.1,1.55765163]
[1725668514100,0.31409,2229.2,2229.1,3.80244654]
[1725668514302,0.31409,2229.2,2229.1,2.63699491]
[1725668514702,0.31409,2229.2,2229.1,3.80240448]
[1725668515009,0.31409,2229.2,2229.1,1.16543848]
[1725668515208,5.96012,2229.2,2229.1,1.16543848]
[1725668515404,0.3141,2229.1,2229.0,1.16543848]
[1725668515805,4.8005,2229.1,2229.0,1.16543848]
[1725668516009,0.31412,2229.0,2228.9,1.16543848]
[1725668516208,0.31412,2229.0,2228.9,3.41061345]
[1725668516409,0.6885,2229.2,2228.9,3.72474615]
[1725668516604,0.31409,2229.2,2229.1,1.16563915]
[1725668517006,0.68847,2229.4,2229.2,0.31408]
[1725668517209,0.31408,2229.3,2229.2,1.16523152]
[1725668517401,0.68847,2229.4,2229.2,1.47932152]
[1725668517606,0.68847,2229.4,2229.3,1.16523152]
[1725668518524,0.68847,2229.4,2229.3,3.40985263]
[1725668518714,0.68847,2229.4,2229.3,1.16523152]
[1725668519515,0.68847,2229.4,2229.3,3.4098866]
[1725668519815,0.68847,2229.4,2229.3,3.41060663]
[1725668520017,0.68846,2229.4,2229.3,1.16599127]
[1725668520518,0.68846,2229.4,2229.3,3.41071175]
[1725668521026,11.48186,2229.4,2229.3,3.41071175]
[1725668521321,3.2078,2229.8,2229.7,0.31402]
[1725668521517,3.2078,2229.8,2229.7,4.30690637]
[1725668521823,3.2078,2229.8,2229.7,13.86336647]
[1725668522124,0.31397,2230.1,2229.8,0.31399]
[1725668522319,3.448784,2230.4,2230.0,0.31397]
[1725668522625,0.31395,2230.2,2230.0,1.16493895]
[1725668522920,6.548784,2230.4,2230.1,1.16493895]
[1725668523122,6.548784,2230.4,2230.0,1.74818631]
[1725668523123,0.31394,2230.3,2230.2,1.16493895]
[1725668523314,0.31394,2230.3,2230.1,1.16493895]
[1725668524727,0.31395,2230.3,2230.1,1.16493895]
[1725668525324,0.31395,2230.3,2230.0,1.47890895]
[1725668526724,0.31396,2230.1,2230.0,1.16493895]
[1725668526926,3.4765,2230.2,2229.9,1.54813895]
[1725668527119,0.31397,2230.1,2229.9,1.54813895]
[1725668527318,0.31397,2230.1,2229.9,0.3832]
[1725668527527,0.31397,2230.1,2229.9,1.54813895]
[1725668527824,3.2078,2230.1,2230.0,0.31397]
[1725668528127,3.41396,2230.2,2229.9,1.86211895]
[1725668528635,3.1,2230.2,2229.9,1.54813895]
[1725668528831,6.62173,2230.4,2230.1,0.31396]
[1725668529028,0.31393,2230.3,2230.1,0.31396]
[1725668529328,0.31395,2230.2,2230.0,1.16493895]
[1725668529734,0.31395,2230.2,2230.0,1.47890895]
[1725668530427,0.31395,2230.2,2230.0,0.31397]
[1725668530626,6.3078,2230.4,2230.0,1.47890895]
[1725668530930,0.31393,2230.3,2230.0,1.47890895]
[1725668531330,0.31393,2230.3,2230.1,0.31396]
[1725668531532,0.31396,2230.1,2230.0,1.16493895]
[1725668531828,0.31396,2230.1,2229.9,1.86212895]
[1725668533121,0.31397,2230.0,2229.9,1.54813895]
[1725668533528,0.31397,2230.0,2229.9,0.3832]
[1725668534828,3.2078,2230.1,2229.9,0.3832]
[1725668534829,3.52177,2230.1,2229.9,0.3832]
[1725668536326,0.31397,2230.0,2229.9,0.3832]
[1725668536536,3.52177,2230.1,2229.9,0.3832]
[1725668536731,0.31399,2229.9,2229.8,1.16493895]
[1725668536925,0.71598,2230.0,2229.7,5.05594895]
[1725668537119,0.31399,2229.9,2229.7,5.05595895]
[1725668537922,0.402,2230.0,2229.8,1.16493895]
[1725668538124,3.99278,2229.9,2229.6,1.16493895]
[1725668538337,0.31403,2229.7,2229.5,1.16493895]
[1725668539327,3.99278,2229.9,2229.5,1.16493895]
[1725668539328,0.31401,2229.8,2229.5,1.47898895]
[1725668540031,0.31402,2229.7,2229.5,1.47898895]
[1725668540636,0.31403,2229.6,2229.5,1.16493895]
[1725668540830,1e-08,2229.6,2229.5,3.40911867]
[1725668541143,1e-08,2229.6,2229.5,1.16493895]
[1725668541525,0.31405,2229.5,2229.4,0.3692]
[1725668543046,4.79965,2229.5,2229.2,1.47902895]
[1725668543349,0.31405,2229.5,2229.2,1.87562895]
[1725668543639,0.37530001,2229.6,2229.3,0.31407]
[1725668543840,0.31403001,2229.6,2229.3,1.47900895]
[1725668544434,1e-08,2229.6,2229.3,1.47900895]
[1725668544635,1e-08,2229.6,2229.3,0.31407]
[1725668544829,1e-08,2229.6,2229.3,1.47900895]
[1725668544830,0.31404001,2229.6,2229.3,1.47900895]
[1725668545637,0.31405,2229.5,2229.3,1.47900895]
[1725668545838,0.31405,2229.5,2229.3,1.16493895]
[1725668546035,0.31406,2229.4,2229.2,1.56153895]
[1725668546233,0.31407,2229.3,2229.2,1.56153895]
[1725668546440,0.31409,2229.2,2229.0,4.74663895]
[1725668546642,0.31409,2229.2,2229.0,5.06074895]
[1725668548437,3.52188,2229.3,2229.0,5.06074895]
[1725668548637,3.52188,2229.3,2229.1,0.3141]
[1725668548941,3.52188,2229.3,2229.0,5.06074895]
[1725668549839,0.31409,2229.2,2229.0,5.06074895]
[1725668550035,0.31409,2229.2,2229.0,4.74663895]
[1725668550741,0.31409,2229.2,2229.0,1.53883895]
[1725668550942,3.52188,2229.3,2229.0,1.85294895]
[1725668551542,1.10216,2229.4,2229.1,0.3141]
[1725668551742,1.10216,2229.4,2229.1,1.47903895]
[1725668551938,4.30996,2229.4,2229.1,1.47903895]
[1725668552246,4.30997,2229.4,2229.1,1.16493895]
[1725668552547,0.31407,2229.3,2229.1,1.47903895]
[1725668552747,3.91127,2229.4,2229.1,1.47903895]
[1725668553041,0.31407,2229.3,2229.1,1.47903895]
[1725668553936,1.39692018,2229.6,2229.1,1.47903895]
[1725668554136,0.31407,2229.4,2229.2,1.16493895]
[1725668554338,1.39692018,2229.6,2229.2,1.16493895]